bitfinex-derivatives/quotes_BTCF0:USTF0_20241231
["timestamp","ask_amount","ask_price","bid_price","bid_amount"]
[1735680927210,0.053391,93822.0,93821.0,0.053391]
[1735680929510,0.053391,93822.0,93821.0,0.056391]
[1735680929709,0.053391,93822.0,93821.0,0.057391]
[1735680932818,0.0694106,93822.0,93821.0,0.057391]
[1735680936416,0.053391,93822.0,93821.0,0.057391]
[1735680937813,0.3608,93828.0,93821.0,0.057391]
[1735680938014,0.053386,93830.0,93827.0,0.053388]
[1735680938319,0.053384,93834.0,93833.0,0.053384]
[1735680940417,0.055384,93834.0,93833.0,0.053384]
[1735680940919,0.056384,93834.0,93833.0,0.053384]
[1735680941513,0.055384,93834.0,93833.0,0.053384]
[1735680942912,0.053384,93834.0,93833.0,0.053384]
[1735680944120,0.054384,93834.0,93833.0,0.053384]
[1735680944422,0.055384,93834.0,93833.0,0.053384]
[1735680950621,0.002,93834.0,93833.0,0.053384]
[1735680951926,0.055384,93834.0,93833.0,0.053384]
[1735680960834,0.055384,93834.0,93828.0,0.053387]
[1735680960835,0.053387,93829.0,93828.0,0.053387]
[1735680961027,0.414187,93829.0,93828.0,0.053387]
[1735680963025,0.414187,93829.0,93828.0,0.055387]
[1735680966426,0.053387,93829.0,93828.0,0.055387]
[1735680966629,0.414187,93829.0,93828.0,0.055387]
[1735680967630,0.22428937,93829.0,93828.0,0.055387]
[1735680967937,0.27767637,93829.0,93828.0,0.055387]
[1735680971434,0.053387,93829.0,93828.0,0.055387]
[1735680980543,0.3608,93839.0,93836.0,0.053381]
[1735680980743,0.053378,93846.0,93845.0,0.053377]
[1735680980946,0.032,93851.0,93845.0,0.053377]
[1735680981251,0.053375,93850.0,93847.0,0.053376]
[1735680983445,0.00359883,93848.0,93847.0,0.053376]
[1735680983643,0.00659883,93848.0,93847.0,0.053376]
[1735680984048,0.00459883,93848.0,93847.0,0.053376]
[1735680984249,0.00659883,93848.0,93847.0,0.053376]
[1735680984741,0.00459883,93848.0,93847.0,0.053376]
[1735680984955,0.00559883,93848.0,93847.0,0.053376]
[1735680991167,0.004,93848.0,93847.0,0.053376]
[1735680992049,0.00159835,93867.0,93866.0,0.053366]
[1735680993243,0.00759835,93867.0,93866.0,0.054366]
[1735680993450,0.00959835,93867.0,93866.0,0.055366]
[1735680998060,0.00959835,93867.0,93866.0,0.07013044]
[1735680999147,0.008,93867.0,93866.0,0.07013044]
[1735681008957,0.008,93867.0,93866.0,0.055366]
[1735681010955,0.008,93867.0,93866.0,0.002]
[1735681011162,0.061365,93867.0,93866.0,0.002]
[1735681012355,0.07617244,93867.0,93866.0,0.00087304]
[1735681012561,0.053371,93857.0,93856.0,0.3608]
[1735681013765,0.02280744,93867.0,93856.0,0.3608]
[1735681013971,0.053367,93864.0,93861.0,0.053368]
[1735681014564,0.053367,93864.0,93863.0,0.053367]
[1735681014982,0.006,93867.0,93866.0,0.053366]
[1735681015171,0.053364,93868.0,93867.0,0.053365]
[1735681017065,0.058364,93868.0,93867.0,0.054365]
[1735681018480,0.060364,93868.0,93867.0,0.055365]
[1735681018871,0.060364,93868.0,93867.0,0.054365]
[1735681018872,0.058364,93868.0,93867.0,0.054365]
[1735681019171,0.055364,93868.0,93867.0,0.053365]
[1735681019364,0.056364,93868.0,93867.0,0.053365]
[1735681019971,0.055364,93868.0,93867.0,0.053365]
[1735681020163,0.056364,93868.0,93867.0,0.053365]
[1735681024269,0.055364,93868.0,93867.0,0.053365]
[1735681026178,0.002,93868.0,93867.0,0.053365]
[1735681029680,0.055364,93868.0,93867.0,0.053365]
[1735681032983,0.002,93868.0,93867.0,0.053365]
[1735681035188,0.00205921,93868.0,93867.0,0.053365]
[1735681037083,0.00205921,93868.0,93867.0,0.414165]
[1735681041186,0.1,93875.0,93867.0,0.414165]
[1735681041387,0.1,93875.0,93874.0,0.053361]
[1735681041786,0.1,93875.0,93874.0,0.414161]
[1735681041979,0.0002,93875.0,93874.0,0.414161]
[1735681042180,0.00159804,93886.0,93885.0,0.053355]
[1735681042394,0.2,93900.0,93885.0,0.3608]
[1735681042601,0.2,93900.0,93899.0,0.053347]
[1735681044786,0.202,93900.0,93899.0,0.055347]
[1735681045188,0.202,93900.0,93899.0,0.07063778]
[1735681045589,0.202,93900.0,93899.0,0.06963778]
[1735681045789,0.202,93900.0,93899.0,0.06863778]
[1735681045990,0.202,93900.0,93899.0,0.06963778]
[1735681047285,1e-06,93900.0,93899.0,0.36963778]
[1735681047886,0.0615,93935.0,93924.0,0.053333]
[1735681048086,0.0615,93935.0,93924.0,0.414133]
[1735681049024,0.053324,93940.0,93924.0,0.414133]
[1735681049202,0.101,93925.0,93924.0,0.415133]
[1735681050288,0.102,93925.0,93924.0,0.416133]
[1735681050687,0.0306,93943.0,93942.0,0.053322]
[1735681050886,0.0306,93943.0,93942.0,0.414122]
[1735681051394,0.1,93950.0,93948.0,0.053319]
[1735681052694,0.1,93950.0,93949.0,0.3608]
[1735681053087,0.3608,93967.0,93966.0,0.053309]
[1735681053287,0.05786039,93974.0,93966.0,0.053309]
[1735681053501,0.053297,93987.0,93973.0,0.414105]
[1735681054384,0.001,93974.0,93973.0,0.414105]
[1735681055196,0.101,93975.0,93973.0,0.416105]
[1735681056197,0.101,93975.0,93973.0,0.415105]
[1735681056492,0.101,93975.0,93973.0,0.416105]
[1735681057292,0.1,93975.0,93973.0,0.416105]
[1735681057698,0.1,93975.0,93973.0,0.415105]
[1735681057891,0.1,93975.0,93973.0,0.416105]
[1735681058093,0.1,93975.0,93973.0,0.415105]
[1735681060195,0.0937,93994.0,93973.0,0.415105]
[1735681060391,0.0937,93994.0,93987.0,0.414097]
[1735681061190,0.0937,93994.0,93993.0,0.053293]
[1735681061598,0.0622,93994.0,93993.0,0.053293]
[1735681062596,0.0622,93994.0,93993.0,0.06725495]
[1735681064196,0.0632,93994.0,93993.0,0.06925495]
[1735681064396,0.001,93994.0,93993.0,0.06925495]
[1735681064793,0.0619,94005.0,93993.0,0.06825495]
[1735681064999,0.0619,94005.0,93999.0,0.05329]
[1735681066299,0.0301,94005.0,93999.0,0.05329]
[1735681067511,0.201,94000.0,93999.0,0.05329]
[1735681068403,0.00159618,94018.0,94017.0,0.05328]
[1735681070601,0.00159618,94018.0,94017.0,0.05628]
[1735681070803,0.00159618,94018.0,94014.0,0.36232]
[1735681070993,0.00159618,94018.0,94007.0,0.3608]
[1735681071199,0.05487518,94018.0,94017.0,0.05328]
[1735681072705,0.053281,94015.0,94014.0,0.055282]
[1735681073506,0.053281,94015.0,93994.0,0.053293]
[1735681073507,0.05329,93999.0,93994.0,0.053293]
[1735681073703,0.053295,93991.0,93990.0,0.053294]
[1735681075013,0.054295,93991.0,93990.0,0.053294]
[1735681085123,0.053295,93991.0,93990.0,0.054294]
[1735681085323,0.053295,93991.0,93990.0,0.056294]
[1735681085726,0.07911025,93999.0,93990.0,0.056294]
[1735681086028,0.07911025,93999.0,93998.0,0.053291]
[1735681086329,0.13240025,93999.0,93998.0,0.053291]
[1735681086729,0.13240025,93999.0,93998.0,0.414091]
[1735681087534,0.13340025,93999.0,93998.0,0.414091]
[1735681088827,0.053293,93994.0,93993.0,0.19022285]
[1735681089333,0.053293,93994.0,93987.0,0.25588349]
[1735681089334,0.053293,93994.0,93987.0,0.19022285]
[1735681089533,0.053296,93988.0,93987.0,0.19022285]
[1735681090633,0.053299,93984.0,93983.0,0.053299]
[1735681092235,0.053303,93980.0,93979.0,0.053301]
[1735681093132,0.053303,93976.0,93975.0,0.24352585]
[1735681093328,0.053303,93976.0,93975.0,0.053303]
[1735681094733,0.053303,93976.0,93975.0,0.059303]
[1735681095437,0.053303,93976.0,93975.0,0.062303]
[1735681096139,0.053301,93986.0,93985.0,0.053298]
[1735681096335,0.06755364,93986.0,93985.0,0.053298]
[1735681097342,0.06755364,93986.0,93985.0,0.055298]
[1735681100938,0.06755364,93986.0,93985.0,0.002]
[1735681103443,0.06755364,93986.0,93985.0,0.055298]
[1735681103845,0.0656,93989.0,93985.0,0.055298]
[1735681103846,0.053285,94008.0,94007.0,0.053284]
[1735681104145,0.08732608,94020.0,94003.0,0.3608]
[1735681104446,0.053282,94013.0,94012.0,0.053281]
[1735681106839,0.055282,94013.0,94012.0,0.053281]
[1735681107145,0.062282,94013.0,94012.0,0.001]
[1735681108539,0.053293,93996.0,93995.0,0.053292]
[1735681109244,0.053289,94002.0,93991.0,0.36184]
[1735681109437,0.053289,94002.0,94001.0,0.053289]
[1735681110942,0.055289,94002.0,94001.0,0.053289]
[1735681111536,0.061289,94002.0,94001.0,0.054289]
[1735681112436,0.008,94002.0,94001.0,0.054289]
[1735681114551,0.008,94002.0,94001.0,0.06804696]
[1735681114953,0.008,94002.0,94001.0,0.054289]
[1735681123660,0.061288,94002.0,94001.0,0.054289]
[1735681127259,0.059288,94002.0,94001.0,0.055289]
[1735681127462,0.053288,94002.0,94001.0,0.054289]
[1735681127657,0.08732608,94020.0,94001.0,0.054289]
[1735681127658,0.053285,94011.0,94010.0,0.053283]
[1735681128754,0.057285,94011.0,94010.0,0.053283]
[1735681129953,0.058285,94011.0,94010.0,0.053283]
[1735681130354,0.057285,94011.0,94010.0,0.053283]
[1735681131055,0.056285,94011.0,94010.0,0.053283]
[1735681131665,0.055285,94011.0,94010.0,0.053283]
[1735681133757,0.055285,94011.0,94010.0,0.414083]
[1735681137669,0.055285,94011.0,94010.0,0.053283]
[1735681141165,0.055285,94011.0,94010.0,0.0264848]
[1735681143870,0.002,94011.0,93998.0,0.3608]
[1735681144072,0.05329,93999.0,93998.0,0.3608]
[1735681144971,0.05329,93999.0,93998.0,0.3628]
[1735681145167,0.05329,93999.0,93998.0,0.3668]
[1735681146480,0.09815394,94007.0,93998.0,0.3668]
[1735681146779,0.09815394,94007.0,94006.0,0.414086]
[1735681147282,7.293e-05,94013.0,94012.0,0.053283]
[1735681149179,0.001,94013.0,94012.0,0.053283]
[1735681150264,0.004,94013.0,94012.0,0.053283]
[1735681151380,0.00159556,94044.0,94043.0,0.053265]
[1735681151579,0.00159556,94044.0,94043.0,0.414065]
[1735681152884,0.00159556,94044.0,94043.0,0.053265]
[1735681153477,0.00659556,94044.0,94043.0,0.054265]
[1735681153682,0.00759556,94044.0,94043.0,0.055265]
[1735681154494,0.00759556,94044.0,94043.0,0.054265]
[1735681156287,0.18570655,94054.0,94043.0,0.054265]
[1735681156482,0.053261,94051.0,94050.0,0.053259]
[1735681158795,0.054261,94051.0,94050.0,0.053259]
[1735681159998,0.054261,94051.0,94050.0,0.054259]
[1735681160697,0.053258,94057.0,94056.0,0.053258]
[1735681162893,0.053261,94052.0,94051.0,0.05326]
[1735681164096,0.053261,94052.0,94051.0,0.05426]
[1735681164798,0.053261,94052.0,94051.0,0.002]
[1735681165006,0.053271,94034.0,94033.0,0.053269]
[1735681167101,0.053271,94034.0,94033.0,0.054269]
[1735681168012,0.053271,94034.0,94033.0,0.055269]
[1735681169098,0.053271,94034.0,94033.0,0.054269]
[1735681169303,0.053271,94034.0,94033.0,0.055269]
[1735681169704,0.053271,94034.0,94033.0,0.054269]
[1735681169914,0.053271,94034.0,94033.0,0.056269]
[1735681170416,0.053271,94034.0,94033.0,0.055269]
[1735681170805,0.053271,94034.0,94033.0,0.054269]
[1735681171009,0.053271,94034.0,94033.0,0.055269]
[1735681180222,0.053271,94034.0,94033.0,0.054269]
[1735681181226,0.053271,94034.0,94033.0,0.055269]
[1735681183820,0.053271,94034.0,94033.0,0.056269]
[1735681184222,0.053271,94034.0,94033.0,0.054269]
[1735681184428,0.053271,94034.0,94033.0,0.055269]
[1735681184813,0.053271,94034.0,94033.0,0.054269]
[1735681185019,0.053271,94034.0,94033.0,0.055269]
[1735681186525,0.053271,94034.0,94033.0,0.054269]
[1735681186714,0.053271,94034.0,94033.0,0.055269]
[1735681191426,0.053266,94042.0,94041.0,0.053266]
[1735681192421,0.053263,94046.0,94045.0,0.053262]
[1735681192622,0.053263,94046.0,94039.0,0.30894499]
[1735681192824,0.053263,94046.0,94045.0,0.053262]
[1735681193427,0.01249233,94051.0,94045.0,0.053262]
[1735681193641,0.053261,94050.0,94049.0,0.414061]
[1735681196028,0.053261,94050.0,94049.0,0.415061]
[1735681196829,0.053261,94050.0,94049.0,0.418061]
[1735681197826,0.053261,94050.0,94049.0,0.417061]
[1735681199328,0.053261,94050.0,94049.0,0.416061]
[1735681199633,0.053261,94050.0,94049.0,0.417061]
[1735681201024,0.053261,94050.0,94049.0,0.415061]
[1735681201225,0.053261,94050.0,94049.0,0.417061]
[1735681202230,0.05485416,94054.0,94053.0,0.053259]
[1735681203535,0.05485416,94054.0,94053.0,0.054259]
[1735681204032,0.05485416,94054.0,94053.0,0.055259]
[1735681204333,0.05485416,94054.0,94053.0,0.053259]
[1735681205436,0.053261,94050.0,94049.0,0.36192]
[1735681205734,0.053261,94050.0,94049.0,0.3608]
[1735681207534,0.06595969,94050.0,94049.0,0.3608]
[1735681208537,0.06595969,94050.0,94046.0,0.053263]
[1735681208538,0.053263,94047.0,94046.0,0.053263]
[1735681208933,0.053263,94047.0,94031.0,0.084171]
[1735681208934,0.053263,94047.0,94031.0,0.0309]
[1735681209243,0.05327,94035.0,94034.0,0.05327]
[1735681210442,0.05327,94035.0,94034.0,0.05927]
[1735681210637,0.05327,94035.0,94034.0,0.006]
[1735681210934,0.05327,94035.0,94034.0,0.009]
[1735681212333,0.05327,94035.0,94034.0,0.00373467]
[1735681212633,0.05327,94035.0,94034.0,0.00189629]
[1735681224564,0.05327,94035.0,94034.0,0.05516629]
[1735681231674,0.05327,94035.0,94034.0,0.05627]
[1735681232263,0.05327,94035.0,94034.0,0.06027]
[1735681232568,0.05327,94035.0,94034.0,0.06327]
[1735681233268,0.05327,94035.0,94034.0,0.06127]
[1735681255987,0.05327,94035.0,94034.0,0.008]
[1735681256286,0.053275,94025.0,94024.0,0.00159525]
[1735681257590,0.053275,94025.0,94024.0,0.01059525]
[1735681258091,0.053275,94025.0,94024.0,0.01459525]
[1735681260586,0.053275,94025.0,94024.0,0.06787125]
[1735681264786,0.25734239,94028.0,94024.0,0.06787125]
[1735681264982,0.053275,94025.0,94024.0,0.06787125]
[1735681267589,0.053275,94025.0,94024.0,0.06387125]
[1735681267791,0.053275,94025.0,94024.0,0.06787125]
[1735681273082,0.053275,94025.0,94024.0,0.066276]
[1735681279695,0.053282,94016.0,94012.0,0.36192]
[1735681279892,0.053282,94013.0,94012.0,0.3608]
[1735681280086,0.053286,94007.0,94006.0,0.053286]
[1735681280294,0.053286,94006.0,93990.0,0.3608]
[1735681280487,0.053286,94006.0,94004.0,0.053287]
[1735681281197,0.053286,94006.0,93994.0,0.01157107]
[1735681281405,0.06488423,94006.0,93999.0,0.05329]
[1735681281800,0.06488423,94006.0,94005.0,0.0065955]
[1735681282999,0.06588423,94006.0,94005.0,0.0135955]
[1735681283595,0.06588423,94006.0,94005.0,0.0105955]
[1735681283906,0.053287,94005.0,93996.0,0.053291]
[1735681284101,0.053292,93997.0,93996.0,0.053291]
[1735681285200,0.053292,93997.0,93996.0,0.056291]
[1735681286698,0.053292,93997.0,93996.0,0.055291]
[1735681286901,0.053292,93997.0,93996.0,0.058291]
[1735681287099,0.053292,93997.0,93996.0,0.003]
[1735681287294,0.054292,93997.0,93996.0,0.005]
[1735681289700,0.054292,93997.0,93996.0,0.009]
[1735681291400,0.053295,93991.0,93990.0,0.36184]
[1735681291704,0.053295,93991.0,93990.0,0.3608]
[1735681292405,0.14139671,93991.0,93990.0,0.3608]
[1735681293399,0.053302,93978.0,93975.0,0.06492177]
[1735681294899,0.053302,93978.0,93975.0,0.053303]
[1735681295897,0.053302,93978.0,93977.0,0.00859599]
[1735681295898,0.054302,93978.0,93977.0,0.00859599]
[1735681296100,0.054302,93978.0,93977.0,0.06189799]
[1735681296306,0.055302,93978.0,93977.0,0.06189799]
[1735681303108,0.055302,93978.0,93977.0,0.42269799]
[1735681304003,0.31940095,94002.0,93977.0,0.66939599]
[1735681304309,0.31940095,94002.0,93997.0,0.053291]
[1735681304615,0.31940095,94002.0,94001.0,0.053289]
[1735681304805,0.31940095,94002.0,94001.0,0.414089]
[1735681305704,0.053288,94003.0,94001.0,0.3608]
[1735681305903,0.05716541,94010.0,94001.0,0.3608]
[1735681306105,0.053285,94008.0,94007.0,0.053284]
[1735681306711,0.053288,94004.0,94003.0,0.053288]
[1735681309314,0.053288,94004.0,94003.0,0.054288]
[1735681309513,0.053288,94004.0,94003.0,0.056288]
[1735681310920,0.14151306,94004.0,94003.0,0.056288]
[1735681313318,0.053288,94004.0,94003.0,0.056288]
[1735681315521,0.14151848,94004.0,94003.0,0.056288]
[1735681318127,0.14151848,94004.0,94003.0,0.003]
[1735681335744,0.053289,94002.0,93983.0,0.053299]
[1735681336039,0.053301,93980.0,93979.0,0.053301]
[1735681337434,0.14153148,93980.0,93979.0,0.053301]
[1735681337635,0.053301,93979.0,93978.0,0.0307]
[1735681338537,0.14153148,93979.0,93978.0,0.0307]
[1735681339043,0.14153148,93979.0,93978.0,0.084002]
[1735681339944,0.14253148,93979.0,93978.0,0.084002]
[1735681340444,0.14253148,93979.0,93978.0,0.088002]
[1735681341142,0.14253148,93979.0,93978.0,0.0347]
[1735681343349,0.14253148,93979.0,93978.0,0.088002]
[1735681345140,0.054301,93979.0,93978.0,0.088002]
[1735681348156,0.21245505,93986.0,93978.0,0.088002]
[1735681348454,0.053301,93979.0,93978.0,0.088002]
[1735681351844,0.053301,93979.0,93978.0,0.0347]
[1735681355353,0.053301,93979.0,93978.0,0.3955]
[1735681360061,0.053301,93979.0,93978.0,0.0347]
[1735681360262,0.053301,93979.0,93978.0,0.3955]
[1735681361759,0.053301,93979.0,93978.0,0.3648]
[1735681364456,0.053301,93979.0,93978.0,0.004]
[1735681365767,0.053301,93979.0,93978.0,0.006]
[1735681366166,0.053301,93979.0,93978.0,0.005]
[1735681367065,0.053301,93979.0,93978.0,0.003]
[1735681374569,0.15148123,93983.0,93982.0,0.0533]
[1735681374763,0.053297,93988.0,93987.0,0.053295]
[1735681375075,0.31940095,93993.0,93992.0,0.053294]
[1735681375264,0.37269395,93993.0,93992.0,0.053294]
[1735681375968,0.053293,93993.0,93992.0,0.053294]
[1735681376669,0.058293,93993.0,93992.0,0.053294]
[1735681378085,0.060293,93993.0,93992.0,0.053294]
[1735681378970,0.060293,93993.0,93992.0,0.07110701]
[1735681380465,0.060293,93993.0,93992.0,0.053294]
[1735681387470,0.060293,93993.0,93992.0,0.414094]
[1735681392282,0.09816532,94008.0,94007.0,0.053285]
[1735681393588,0.10716532,94008.0,94007.0,0.053285]
[1735681393984,0.009,94008.0,94007.0,0.053285]
[1735681394381,0.014,94008.0,94007.0,0.053285]
[1735681397581,0.014,94008.0,94007.0,0.07133055]
[1735681409494,0.014,94008.0,94007.0,0.43213055]
[1735681419598,0.20302163,94018.0,94017.0,0.05328]
[1735681421596,0.20302163,94018.0,94017.0,0.05428]
[1735681421597,0.21202163,94018.0,94017.0,0.05428]
[1735681422003,0.21402163,94018.0,94017.0,0.05428]
[1735681422704,0.20302163,94018.0,94017.0,0.05428]
[1735681422903,0.21502163,94018.0,94017.0,0.05428]
[1735681423101,0.21502163,94018.0,94017.0,0.02264774]
[1735681424301,0.012,94018.0,94017.0,0.02264774]
[1735681429416,0.001,94018.0,94016.0,0.3608]
[1735681429609,0.001,94018.0,94017.0,0.05328]
[1735681430905,0.35169143,94019.0,94018.0,0.053279]
[1735681431508,0.40497043,94019.0,94018.0,0.053279]
[1735681431714,0.24959144,94019.0,94018.0,0.053279]
[1735681432107,0.25259144,94019.0,94018.0,0.053279]
[1735681432502,0.25359144,94019.0,94018.0,0.053279]
[1735681437217,0.25059144,94019.0,94018.0,0.053279]
[1735681437416,0.25359144,94019.0,94018.0,0.053279]
[1735681437713,0.25359144,94019.0,94018.0,0.414079]
[1735681440018,0.35174062,94019.0,94018.0,0.414079]
[1735681440221,0.34874062,94019.0,94018.0,0.414079]
[1735681440521,0.35174062,94019.0,94018.0,0.414079]
[1735681441925,0.29846162,94019.0,94018.0,0.414079]
[1735681442913,0.29746162,94019.0,94018.0,0.414079]
[1735681443116,0.29846162,94019.0,94018.0,0.414079]
[1735681443310,0.001,94019.0,94018.0,0.414079]
[1735681443508,0.004,94019.0,94018.0,0.414079]
[1735681443919,0.004,94019.0,94018.0,0.3608]
[1735681444107,0.057279,94019.0,94018.0,0.3608]
[1735681445127,0.057279,94019.0,94018.0,0.30080138]
[1735681445424,0.057279,94019.0,94008.0,0.415125]
[1735681445425,0.053284,94009.0,94008.0,0.415125]
[1735681445620,0.053284,94009.0,94008.0,0.414085]
[1735681446528,0.053284,94009.0,94008.0,0.415085]
[1735681447122,0.053284,94009.0,94008.0,0.417085]
[1735681448127,0.054284,94009.0,94008.0,0.415085]
[1735681449030,0.054284,94009.0,94008.0,0.414085]
[1735681450217,0.053284,94009.0,94008.0,0.414085]
[1735681451627,0.053284,94009.0,94008.0,0.415085]
[1735681452327,0.053284,94009.0,94008.0,0.416085]
[1735681453238,0.053279,94023.0,94022.0,0.053276]
[1735681454835,0.059279,94023.0,94022.0,0.054276]
[1735681455738,0.059279,94023.0,94022.0,0.001]
[1735681456037,0.061279,94023.0,94022.0,0.001]
[1735681456540,0.059279,94023.0,94022.0,0.001]
[1735681456732,0.061279,94023.0,94022.0,0.001]
[1735681457038,0.05328,94017.0,94016.0,0.3608]
[1735681458228,0.05728,94017.0,94016.0,0.41408]
[1735681460122,0.05328,94017.0,94016.0,0.41408]
[1735681460332,0.05728,94017.0,94016.0,0.41408]
[1735681461524,0.05428,94017.0,94016.0,0.41408]
[1735681461729,0.05728,94017.0,94016.0,0.41408]
[1735681463238,0.05428,94017.0,94016.0,0.41408]
[1735681463424,0.05628,94017.0,94016.0,0.41408]
[1735681463630,0.05528,94017.0,94016.0,0.41408]
[1735681463836,0.05428,94017.0,94016.0,0.41408]
[1735681464049,0.05628,94017.0,94016.0,0.41408]
[1735681468542,0.05628,94017.0,94016.0,0.05328]
[1735681469154,0.3638,94017.0,93995.0,0.3608]
[1735681469348,0.053288,94003.0,94002.0,0.053287]
[1735681470643,0.053288,94003.0,94002.0,0.057287]
[1735681472838,0.053288,94003.0,94002.0,0.059287]
[1735681480651,0.053288,94003.0,94002.0,0.006]
[1735681481749,0.053288,94003.0,94002.0,0.00266618]
[1735681489959,0.09815914,94008.0,94002.0,0.00266618]
[1735681490146,0.09815914,94008.0,94007.0,0.053285]
[1735681490347,0.3608,94013.0,94012.0,0.053283]
[1735681490951,0.053281,94016.0,94015.0,0.053281]
[1735681493346,0.055281,94016.0,94015.0,0.053281]
[1735681496158,0.053284,94012.0,94011.0,0.053283]
[1735681499458,0.053284,94010.0,94009.0,0.0322]
[1735681499652,0.053285,94008.0,94007.0,0.053285]
[1735681500049,0.01326634,94016.0,94002.0,0.053288]
[1735681500358,0.053288,94003.0,94002.0,0.053288]
[1735681501360,0.053288,94003.0,94002.0,0.055288]
[1735681501554,0.053288,94003.0,94002.0,0.059288]
[1735681503759,0.053288,94003.0,94002.0,0.006]
[1735681506161,0.06687234,94003.0,94002.0,0.006]
[1735681509773,0.053288,94003.0,94002.0,0.006]
[1735681512270,0.053288,94003.0,94002.0,0.00037798]
[1735681512465,0.053296,93990.0,93989.0,0.053296]
[1735681512861,0.053296,93990.0,93982.0,0.031]
[1735681512862,0.053296,93989.0,93982.0,0.031]
[1735681513067,0.053296,93989.0,93984.0,0.01360927]
[1735681513861,0.053296,93989.0,93988.0,0.05489175]
[1735681514474,0.054296,93989.0,93988.0,0.06389175]
[1735681514673,0.054296,93989.0,93988.0,0.06889175]
[1735681519472,0.054296,93989.0,93988.0,0.01559575]
[1735681519669,0.053304,93976.0,93975.0,0.053303]
[1735681519972,0.4480039,93985.0,93984.0,0.053298]
[1735681520168,0.3608,93985.0,93984.0,0.053298]
[1735681520573,0.414098,93985.0,93984.0,0.053298]
[1735681521179,0.51327053,93985.0,93984.0,0.062298]
[1735681521778,0.51327053,93985.0,93984.0,0.067298]
[1735681524377,0.415098,93985.0,93984.0,0.067298]
[1735681525586,0.415098,93985.0,93984.0,0.014]
[1735681527383,0.054298,93985.0,93984.0,0.014]
[1735681531891,0.415098,93985.0,93984.0,0.014]
[1735681532487,0.51327649,93985.0,93984.0,0.014]
[1735681546899,0.35357569,93985.0,93984.0,0.014]
[1735681547598,0.40687369,93985.0,93984.0,0.014]
[1735681555100,0.3086952,93985.0,93984.0,0.014]
[1735681557802,0.40688618,93985.0,93984.0,0.014]
[1735681564606,0.053298,93984.0,93971.0,0.3608]
[1735681564804,0.053305,93972.0,93971.0,0.414104]
[1735681565606,0.053305,93972.0,93971.0,0.3608]
[1735681565811,0.053305,93972.0,93971.0,0.3678]
[1735681566008,0.053305,93972.0,93971.0,0.3688]
[1735681566410,0.053305,93972.0,93971.0,0.3678]
[1735681566616,0.055305,93972.0,93971.0,0.3688]
[1735681568418,0.067666,93972.0,93971.0,0.3688]
[1735681568625,0.065666,93972.0,93971.0,0.3638]
[1735681568825,0.066666,93972.0,93971.0,0.3638]
[1735681584235,0.053309,93965.0,93964.0,0.0321]
[1735681584435,0.053309,93965.0,93962.0,0.00159623]
[1735681584635,0.05331,93963.0,93962.0,0.00159623]
[1735681584932,0.053309,93965.0,93958.0,0.0319]
[1735681585128,0.053313,93959.0,93958.0,0.02540964]
[1735681585329,0.053316,93953.0,93952.0,0.3608]
[1735681585734,0.053321,93945.0,93932.0,0.3608]
[1735681585933,0.053327,93936.0,93935.0,0.0125337]
[1735681586136,0.053327,93936.0,93932.0,0.3608]
[1735681586335,0.053327,93933.0,93932.0,0.414127]
[1735681588228,0.053327,93933.0,93932.0,0.3608]
[1735681589144,0.054327,93933.0,93932.0,0.3628]
[1735681589337,0.06702873,93933.0,93932.0,0.3628]
[1735681589538,0.06702873,93933.0,93932.0,0.002]
[1735681589936,0.053333,93924.0,93923.0,0.00159625]
[1735681591539,0.053333,93924.0,93923.0,0.00559625]
[1735681592137,0.054333,93924.0,93923.0,0.00559625]
[1735681597947,0.053333,93924.0,93923.0,0.00559625]
[1735681598250,0.054333,93924.0,93923.0,0.00159625]
[1735681598453,0.054333,93924.0,93923.0,0.00459625]
[1735681599150,0.054333,93924.0,93923.0,0.00359625]
[1735681604152,0.001,93924.0,93908.0,0.0316]
[1735681604356,0.053341,93909.0,93908.0,0.0316]
[1735681605446,0.053341,93909.0,93908.0,0.0376]
[1735681605650,0.054341,93909.0,93908.0,0.0376]
[1735681606051,0.054341,93909.0,93908.0,0.0316]
[1735681606254,0.055341,93909.0,93908.0,0.0376]
[1735681607552,0.054341,93909.0,93908.0,0.0316]
[1735681607863,0.054341,93909.0,93908.0,0.0356]
[1735681608061,0.053341,93909.0,93908.0,0.0356]
[1735681608256,0.054341,93909.0,93908.0,0.0356]
[1735681608860,0.054341,93909.0,93908.0,0.3964]
[1735681611158,0.054341,93909.0,93908.0,0.449742]
[1735681613356,0.054341,93909.0,93908.0,0.3648]
[1735681615154,0.054341,93909.0,93908.0,0.418142]
[1735681624166,0.08595622,93919.0,93908.0,0.418142]
[1735681624366,0.053341,93909.0,93908.0,0.418142]
[1735681626868,0.054341,93909.0,93908.0,0.418142]
[1735681627173,0.08595622,93919.0,93918.0,0.053336]
[1735681627470,0.03638699,93919.0,93918.0,0.414136]
[1735681627866,0.05724411,93930.0,93929.0,0.05333]
[1735681628065,0.053326,93937.0,93933.0,0.053327]
[1735681628275,0.01211817,93936.0,93933.0,0.053327]
[1735681628575,0.414127,93934.0,93933.0,0.053327]
[1735681629173,0.417127,93934.0,93933.0,0.053327]
[1735681630977,0.419127,93934.0,93933.0,0.053327]
[1735681636081,0.053335,93919.0,93918.0,0.414135]
[1735681636280,0.053335,93919.0,93918.0,0.053335]
[1735681637482,0.053335,93919.0,93918.0,0.054335]
[1735681637793,0.053335,93919.0,93918.0,0.057335]
[1735681638975,0.053335,93919.0,93918.0,0.054335]
[1735681639176,0.053335,93919.0,93918.0,0.056335]
[1735681642778,0.06533596,93919.0,93918.0,0.056335]